[Event "Late-Titled-Tuesday-Blitz-February-27-2024"]
[Site "Chess.com"]
[Date "2024.02.27"]
[Round "11"]
[White "Hrant_ChessMood"]
[Black "TigrVShlyape"]
[Result "1-0"]
[WhiteElo "3014"]
[BlackElo "2914"]
[TimeControl "180+1"]
[EndTime "16:07:15 PST"]
[Termination "Hrant_ChessMood won by resignation"]

1. d4 {[%clk 0:02:56.6]} 1... f5 {[%clk 0:02:56.7]} 2. Nc3 {[%clk 0:02:55.3]}
2... Nf6 {[%clk 0:02:56]} 3. Bg5 {[%clk 0:02:54.6]} 3... e6 {[%clk 0:02:55.5]}
4. e4 {[%clk 0:02:53]} 4... h6 {[%clk 0:02:34]} 5. Bxf6 {[%clk 0:02:50.1]} 5...
Qxf6 {[%clk 0:02:34.2]} 6. e5 {[%clk 0:02:31.9]} 6... Qf7 {[%clk 0:02:33.8]} 7.
h4 {[%clk 0:02:19.1]} 7... d6 {[%clk 0:02:14.1]} 8. Nf3 {[%clk 0:02:17.4]} 8...
Nc6 {[%clk 0:02:13.7]} 9. Bb5 {[%clk 0:02:16.7]} 9... Bd7 {[%clk 0:02:13.8]} 10.
Qe2 {[%clk 0:02:12.3]} 10... O-O-O {[%clk 0:02:12.8]} 11. O-O-O {[%clk
0:02:11.6]} 11... g6 {[%clk 0:02:02.5]} 12. Rhe1 {[%clk 0:02:07.3]} 12... d5
{[%clk 0:02:01.8]} 13. Na4 {[%clk 0:01:57.1]} 13... Kb8 {[%clk 0:01:52.4]} 14.
Nc5 {[%clk 0:01:48.7]} 14... Bxc5 {[%clk 0:01:42]} 15. dxc5 {[%clk 0:01:48.7]}
15... Qe7 {[%clk 0:01:37.1]} 16. Qe3 {[%clk 0:01:37.7]} 16... Na5 {[%clk
0:01:22]} 17. Bf1 {[%clk 0:01:33.3]} 17... Nc6 {[%clk 0:01:17.1]} 18. Rd3 {[%clk
0:01:22.1]} 18... f4 {[%clk 0:01:16.1]} 19. Qxf4 {[%clk 0:01:17]} 19... Qxc5
{[%clk 0:01:16.4]} 20. Qd2 {[%clk 0:01:02.2]} 20... Rdf8 {[%clk 0:01:11.1]} 21.
a3 {[%clk 0:00:57.6]} 21... Qa5 {[%clk 0:00:53.5]} 22. Rc3 {[%clk 0:00:43.6]}
22... Ne7 {[%clk 0:00:51.1]} 23. Nd4 {[%clk 0:00:35.3]} 23... b6 {[%clk
0:00:35.1]} 24. b4 {[%clk 0:00:35.4]} 24... Qa4 {[%clk 0:00:34.4]} 25. f4 {[%clk
0:00:33]} 25... Nf5 {[%clk 0:00:32.2]} 26. Kb2 {[%clk 0:00:20.6]} 26... Nxd4
{[%clk 0:00:31.3]} 27. Qxd4 {[%clk 0:00:20.5]} 27... Bb5 {[%clk 0:00:30.1]} 28.
Bxb5 {[%clk 0:00:13]} 28... Qxb5 {[%clk 0:00:29.9]} 29. g3 {[%clk 0:00:13.9]}
29... a5 {[%clk 0:00:28.2]} 30. Qd3 {[%clk 0:00:12.4]} 30... Qxd3 {[%clk
0:00:27.9]} 31. Rxd3 {[%clk 0:00:13.3]} 31... axb4 {[%clk 0:00:26.9]} 32. axb4
{[%clk 0:00:14.2]} 32... g5 {[%clk 0:00:25.4]} 33. Rf1 {[%clk 0:00:03.3]} 33...
gxh4 {[%clk 0:00:24.7]} 34. gxh4 {[%clk 0:00:04.2]} 34... Rhg8 {[%clk
0:00:23.8]} 35. f5 {[%clk 0:00:03.6]} 35... Rxf5 {[%clk 0:00:23]} 36. Rxf5
{[%clk 0:00:03.3]} 36... exf5 {[%clk 0:00:23.4]} 37. Rxd5 {[%clk 0:00:04.2]}
37... Rg4 {[%clk 0:00:23.3]} 38. Kc3 {[%clk 0:00:03]} 38... Rxh4 {[%clk
0:00:23.4]} 39. Rd8+ {[%clk 0:00:02]} 39... Kb7 {[%clk 0:00:23.2]} 40. Rf8
{[%clk 0:00:02.9]} 40... Rf4 {[%clk 0:00:23]} 41. Kd3 {[%clk 0:00:02.9]} 41...
Kc6 {[%clk 0:00:22.2]} 42. c4 {[%clk 0:00:03.3]} 42... Kd7 {[%clk 0:00:20.9]}
43. Rf6 {[%clk 0:00:03.5]} 43... h5 {[%clk 0:00:20.4]} 44. Rh6 {[%clk
0:00:03.8]} 44... h4 {[%clk 0:00:20.1]} 45. Rh7+ {[%clk 0:00:04.2]} 45... Kc6
{[%clk 0:00:19.4]} 46. b5+ {[%clk 0:00:03.9]} 46... Kb7 {[%clk 0:00:19.7]} 47.
Rh5 {[%clk 0:00:02.5]} 47... Rf3+ {[%clk 0:00:18.7]} 48. Kd4 {[%clk 0:00:02.7]}
48... h3 {[%clk 0:00:18.5]} 49. e6 {[%clk 0:00:02.9]} 49... Rf4+ {[%clk
0:00:18.1]} 50. Kd5 {[%clk 0:00:03.1]} 50... Re4 {[%clk 0:00:18.1]} 51. Rxh3
{[%clk 0:00:03.5]} 51... Re2 {[%clk 0:00:16.6]} 52. Rf3 {[%clk 0:00:03.5]} 52...
Kc8 {[%clk 0:00:15.2]} 53. Rxf5 {[%clk 0:00:03.7]} 53... Kd8 {[%clk 0:00:15.6]}
54. Rf8+ {[%clk 0:00:04]} 54... Ke7 {[%clk 0:00:16]} 55. Rf7+ {[%clk 0:00:04.9]}
55... Kd8 {[%clk 0:00:16.2]} 56. Rd7+ {[%clk 0:00:05.4]} 56... Kc8 {[%clk
0:00:16.6]} 57. Rh7 {[%clk 0:00:06.3]} 57... Kd8 {[%clk 0:00:17]} 58. Rg7 {[%clk
0:00:03.8]} 58... Re1 {[%clk 0:00:16.2]} 59. Rg8+ {[%clk 0:00:03]} 59... Ke7
{[%clk 0:00:16.6]} 60. Rc8 {[%clk 0:00:03.9]} 60... Rd1+ {[%clk 0:00:16.2]} 61.
Kc6 {[%clk 0:00:04.5]} 61... Kxe6 {[%clk 0:00:15.8]} 62. Rxc7 {[%clk 0:00:03.6]}
62... Rd6+ {[%clk 0:00:15.1]} 63. Kb7 {[%clk 0:00:04.2]} 63... Ke5 {[%clk
0:00:15.5]} 64. c5 {[%clk 0:00:04.1]} 64... bxc5 {[%clk 0:00:15]} 65. Rxc5+
{[%clk 0:00:05]} 65... Kd4 {[%clk 0:00:14.7]} 66. Rc6 {[%clk 0:00:05.5]} 66...
Rd7+ {[%clk 0:00:14.2]} 67. Rc7 {[%clk 0:00:05.5]} 67... Rd8 {[%clk 0:00:14]}
68. b6 {[%clk 0:00:06.1]} 68... Kd5 {[%clk 0:00:14.5]} 69. Rc8 {[%clk
0:00:05.3]} 69... Rd7+ {[%clk 0:00:14.6]} 70. Ka6 {[%clk 0:00:05.6]} 70... Rd6
{[%clk 0:00:15.1]} 71. Ka7 {[%clk 0:00:05.5]} 1-0

[Event "Late-Titled-Tuesday-Blitz-February-27-2024"]
[Site "Chess.com"]
[Date "2024.02.27"]
[Round "11"]
[White "Brahianzevich"]
[Black "Jahonas"]
[Result "1/2-1/2"]
[WhiteElo "2501"]
[BlackElo "2377"]
[TimeControl "180+1"]
[EndTime "16:07:16 PST"]
[Termination "Game drawn - insufficient material"]

1. e4 {[%clk 0:02:59.2]} 1... c6 {[%clk 0:02:59.9]} 2. d4 {[%clk 0:02:59.1]}
2... d5 {[%clk 0:03:00.3]} 3. Nc3 {[%clk 0:03:00]} 3... dxe4 {[%clk 0:03:00.4]}
4. Nxe4 {[%clk 0:03:00.9]} 4... Nf6 {[%clk 0:03:00.8]} 5. Nxf6+ {[%clk 0:03:01]}
5... exf6 {[%clk 0:03:01.2]} 6. c3 {[%clk 0:03:01.9]} 6... Bd6 {[%clk
0:03:01.3]} 7. Bd3 {[%clk 0:03:01.8]} 7... Be6 {[%clk 0:02:58.2]} 8. Ne2 {[%clk
0:03:02]} 8... Nd7 {[%clk 0:02:58]} 9. Qc2 {[%clk 0:02:59.3]} 9... h5 {[%clk
0:02:56.4]} 10. Be3 {[%clk 0:02:58.8]} 10... Qc7 {[%clk 0:02:56.2]} 11. O-O-O
{[%clk 0:02:46]} 11... O-O-O {[%clk 0:02:50.1]} 12. Kb1 {[%clk 0:02:45.3]} 12...
h4 {[%clk 0:02:36.6]} 13. g3 {[%clk 0:02:43]} 13... hxg3 {[%clk 0:02:34.9]} 14.
hxg3 {[%clk 0:02:43.9]} 14... g5 {[%clk 0:02:32.2]} 15. Bf5 {[%clk 0:02:39.1]}
15... Rdg8 {[%clk 0:02:27.4]} 16. Qe4 {[%clk 0:02:31.8]} 16... Nf8 {[%clk
0:02:25.9]} 17. Bxe6+ {[%clk 0:02:19.1]} 17... fxe6 {[%clk 0:02:25.4]} 18. Rxh8
{[%clk 0:02:18.3]} 18... Rxh8 {[%clk 0:02:24.6]} 19. Rh1 {[%clk 0:02:19]} 19...
Rxh1+ {[%clk 0:02:23.5]} 20. Qxh1 {[%clk 0:02:19.9]} 20... Qh7+ {[%clk
0:02:23.1]} 21. Qxh7 {[%clk 0:02:18]} 21... Nxh7 {[%clk 0:02:24]} 22. Kc2 {[%clk
0:02:18.3]} 22... Kd7 {[%clk 0:02:22.4]} 23. Kd3 {[%clk 0:02:13.4]} 23... a6
{[%clk 0:02:21.8]} 24. c4 {[%clk 0:02:11.6]} 24... Nf8 {[%clk 0:02:20.4]} 25.
Nc3 {[%clk 0:02:08.9]} 25... Ng6 {[%clk 0:02:09.5]} 26. a3 {[%clk 0:01:52.2]}
26... g4 {[%clk 0:01:58.5]} 27. b4 {[%clk 0:01:45.4]} 27... Be7 {[%clk
0:01:57.8]} 28. d5 {[%clk 0:01:43.3]} 28... Ne5+ {[%clk 0:01:53.5]} 29. Kd4
{[%clk 0:01:43.4]} 29... b5 {[%clk 0:01:37.6]} 30. dxe6+ {[%clk 0:01:36.8]}
30... Kxe6 {[%clk 0:01:35.6]} 31. cxb5 {[%clk 0:01:36.9]} 31... axb5 {[%clk
0:01:30.4]} 32. Ne4 {[%clk 0:01:29.4]} 32... Nf3+ {[%clk 0:01:23.6]} 33. Kd3
{[%clk 0:01:25.9]} 33... f5 {[%clk 0:01:23.1]} 34. Nc5+ {[%clk 0:01:15.9]} 34...
Bxc5 {[%clk 0:01:22.6]} 35. Bxc5 {[%clk 0:01:16.8]} 35... Kd5 {[%clk 0:01:22.4]}
36. Ke3 {[%clk 0:01:17.1]} 36... Ne5 {[%clk 0:01:17.6]} 37. Kf4 {[%clk
0:01:15.4]} 37... Ke6 {[%clk 0:01:00.7]} 38. Be3 {[%clk 0:01:10.9]} 38... Nd3+
{[%clk 0:00:56.5]} 39. Kg5 {[%clk 0:01:08.3]} 39... Ke5 {[%clk 0:00:49.3]} 40.
Kg6 {[%clk 0:01:07.7]} 40... Nb2 {[%clk 0:00:46.2]} 41. Kf7 {[%clk 0:01:00]}
41... Nc4 {[%clk 0:00:46.4]} 42. Bc1 {[%clk 0:00:57.6]} 42... Ke4 {[%clk
0:00:44.5]} 43. Ke6 {[%clk 0:00:57.4]} 43... Ne5 {[%clk 0:00:41.6]} 44. Bf4
{[%clk 0:00:51]} 44... Nd3 {[%clk 0:00:40.5]} 45. Be3 {[%clk 0:00:51.3]} 45...
Nb2 {[%clk 0:00:34.3]} 46. Kd6 {[%clk 0:00:50.1]} 46... Nc4+ {[%clk 0:00:34.3]}
47. Kxc6 {[%clk 0:00:48.6]} 47... Nxe3 {[%clk 0:00:34.9]} 48. Kxb5 {[%clk
0:00:17]} 48... Nd1 {[%clk 0:00:27.8]} 49. a4 {[%clk 0:00:11.1]} 49... Nxf2
{[%clk 0:00:25.9]} 50. a5 {[%clk 0:00:10.9]} 50... f4 {[%clk 0:00:16.2]} 51. a6
{[%clk 0:00:11.3]} 51... fxg3 {[%clk 0:00:15.8]} 52. a7 {[%clk 0:00:11.8]} 52...
Ke3 {[%clk 0:00:12.7]} 53. a8=Q {[%clk 0:00:11.8]} 53... Ne4 {[%clk 0:00:13.2]}
54. Qa7+ {[%clk 0:00:11.6]} 54... Kf3 {[%clk 0:00:12.5]} 55. Qg1 {[%clk
0:00:10.9]} 55... g2 {[%clk 0:00:12.8]} 56. Kc6 {[%clk 0:00:09.5]} 56... Ng3
{[%clk 0:00:12.8]} 57. b5 {[%clk 0:00:08.2]} 57... Ne2 {[%clk 0:00:13]} 58. Qc5
{[%clk 0:00:02.4]} 58... g1=Q {[%clk 0:00:12.1]} 59. Qxg1 {[%clk 0:00:02.2]}
59... Nxg1 {[%clk 0:00:12.4]} 60. b6 {[%clk 0:00:03.1]} 60... Ne2 {[%clk
0:00:12.8]} 61. b7 {[%clk 0:00:03.7]} 61... g3 {[%clk 0:00:12.3]} 62. b8=Q
{[%clk 0:00:03.5]} 62... g2 {[%clk 0:00:12.2]} 63. Qf8+ {[%clk 0:00:04.4]} 63...
Nf4 {[%clk 0:00:11.9]} 64. Qg8 {[%clk 0:00:03.8]} 64... Kf2 {[%clk 0:00:11.5]}
65. Qg4 {[%clk 0:00:03.4]} 65... g1=Q {[%clk 0:00:10.8]} 66. Qxf4+ {[%clk
0:00:04.1]} 66... Ke1 {[%clk 0:00:10.5]} 67. Qc1+ {[%clk 0:00:04]} 67... Kf2
{[%clk 0:00:10.7]} 68. Qc5+ {[%clk 0:00:04.2]} 68... Kf1 {[%clk 0:00:11.1]} 69.
Qc4+ {[%clk 0:00:04.1]} 69... Kg2 {[%clk 0:00:11.4]} 70. Qg4+ {[%clk 0:00:04.1]}
70... Kh1 {[%clk 0:00:11.7]} 71. Qh3+ {[%clk 0:00:04]} 71... Qh2 {[%clk
0:00:12]} 72. Qf1+ {[%clk 0:00:04]} 72... Qg1 {[%clk 0:00:12.5]} 73. Qh3+ {[%clk
0:00:03.8]} 73... Qh2 {[%clk 0:00:12.8]} 74. Qxh2+ {[%clk 0:00:04]} 74... Kxh2
{[%clk 0:00:13]} 1/2-1/2

[Event "Late-Titled-Tuesday-Blitz-February-27-2024"]
[Site "Chess.com"]
[Date "2024.02.27"]
[Round "11"]
[White "adricalderon8"]
[Black "AcostaPablo"]
[Result "1-0"]
[WhiteElo "2521"]
[BlackElo "2615"]
[TimeControl "180+1"]
[EndTime "16:07:39 PST"]
[Termination "adricalderon8 won by checkmate"]

1. e4 {[%clk 0:03:00.9]} 1... e6 {[%clk 0:02:56.9]} 2. d4 {[%clk 0:02:58.4]}
2... d5 {[%clk 0:02:57.1]} 3. Nc3 {[%clk 0:02:57.8]} 3... Nf6 {[%clk 0:02:55.7]}
4. Bg5 {[%clk 0:02:55.3]} 4... Be7 {[%clk 0:02:54.5]} 5. e5 {[%clk 0:02:52.6]}
5... Nfd7 {[%clk 0:02:53.9]} 6. h4 {[%clk 0:02:53.1]} 6... a6 {[%clk 0:02:52.4]}
7. Qg4 {[%clk 0:02:49.4]} 7... Rg8 {[%clk 0:02:47.9]} 8. O-O-O {[%clk
0:02:43.8]} 8... c5 {[%clk 0:02:48.4]} 9. Nf3 {[%clk 0:02:43.1]} 9... Nc6 {[%clk
0:02:48.6]} 10. dxc5 {[%clk 0:02:43]} 10... Ndxe5 {[%clk 0:02:47.8]} 11. Nxe5
{[%clk 0:02:41.6]} 11... Nxe5 {[%clk 0:02:48.2]} 12. Qg3 {[%clk 0:02:42.3]}
12... Nc6 {[%clk 0:02:45.3]} 13. Bd3 {[%clk 0:02:41.2]} 13... h6 {[%clk
0:02:44.2]} 14. Bxe7 {[%clk 0:02:41.3]} 14... Qxe7 {[%clk 0:02:44.5]} 15. Na4
{[%clk 0:02:30.1]} 15... g6 {[%clk 0:02:34.6]} 16. Rhe1 {[%clk 0:02:29.3]} 16...
Kf8 {[%clk 0:02:22.1]} 17. Nb6 {[%clk 0:02:27.9]} 17... Rb8 {[%clk 0:02:14.3]}
18. Nxd5 {[%clk 0:02:23.6]} 18... Qxc5 {[%clk 0:02:13.6]} 19. Nf6 {[%clk
0:02:24.2]} 19... Rh8 {[%clk 0:02:08.2]} 20. Be4 {[%clk 0:02:24.5]} 20... Ra8
{[%clk 0:02:01.2]} 21. Bxc6 {[%clk 0:02:20.5]} 21... bxc6 {[%clk 0:01:55.1]} 22.
Re5 {[%clk 0:01:50.8]} 22... Qe7 {[%clk 0:01:43.6]} 23. Qf3 {[%clk 0:01:50.4]}
23... Kg7 {[%clk 0:01:40.6]} 24. Ne4 {[%clk 0:01:43.8]} 24... Bb7 {[%clk
0:01:32.2]} 25. Qc3 {[%clk 0:01:35.4]} 25... f6 {[%clk 0:01:23.2]} 26. Nc5
{[%clk 0:01:09.2]} 26... Bc8 {[%clk 0:00:31.2]} 27. Re3 {[%clk 0:01:01.5]} 27...
e5 {[%clk 0:00:31.3]} 28. f4 {[%clk 0:00:53.3]} 28... Bg4 {[%clk 0:00:31.3]} 29.
Rde1 {[%clk 0:00:52]} 29... Rad8 {[%clk 0:00:28.5]} 30. fxe5 {[%clk 0:00:50.9]}
30... f5 {[%clk 0:00:28.9]} 31. e6+ {[%clk 0:00:51]} 31... Kh7 {[%clk
0:00:29.6]} 32. Nd7 {[%clk 0:00:48.7]} 32... h5 {[%clk 0:00:27.3]} 33. Rd3
{[%clk 0:00:43.3]} 33... Qxh4 {[%clk 0:00:19.6]} 34. e7 {[%clk 0:00:42.1]} 34...
Rde8 {[%clk 0:00:14.3]} 35. Nf6+ {[%clk 0:00:41.6]} 35... Kh6 {[%clk 0:00:15.1]}
36. Nxe8 {[%clk 0:00:41]} 36... Rxe8 {[%clk 0:00:16]} 37. Qd2+ {[%clk
0:00:38.1]} 37... f4 {[%clk 0:00:13.8]} 38. Qxf4+ {[%clk 0:00:35.1]} 38... Kg7
{[%clk 0:00:14.3]} 39. Rde3 {[%clk 0:00:34.9]} 39... Qf6 {[%clk 0:00:13.9]} 40.
Qxf6+ {[%clk 0:00:32.1]} 40... Kxf6 {[%clk 0:00:14.8]} 41. Kd2 {[%clk
0:00:32.1]} 41... Bf5 {[%clk 0:00:15.1]} 42. Kc3 {[%clk 0:00:31.9]} 42... g5
{[%clk 0:00:15.6]} 43. R1e2 {[%clk 0:00:30.5]} 43... h4 {[%clk 0:00:16.1]} 44.
Kc4 {[%clk 0:00:30.8]} 44... g4 {[%clk 0:00:16.1]} 45. Kc5 {[%clk 0:00:31]}
45... h3 {[%clk 0:00:14.2]} 46. gxh3 {[%clk 0:00:30.8]} 46... gxh3 {[%clk
0:00:15.1]} 47. Kxc6 {[%clk 0:00:30]} 47... Bg4 {[%clk 0:00:14.8]} 48. Rf2+
{[%clk 0:00:29.5]} 48... Kg5 {[%clk 0:00:15.5]} 49. c4 {[%clk 0:00:28.4]} 49...
Kh4 {[%clk 0:00:08.2]} 50. c5 {[%clk 0:00:24.9]} 50... Bc8 {[%clk 0:00:07.8]}
51. Kc7 {[%clk 0:00:20.2]} 51... Bg4 {[%clk 0:00:07.2]} 52. Rf8 {[%clk
0:00:19.3]} 52... h2 {[%clk 0:00:04.8]} 53. Re2 {[%clk 0:00:14.5]} 53... Bxe2
{[%clk 0:00:04.2]} 54. Rxe8 {[%clk 0:00:13.4]} 54... Bh5 {[%clk 0:00:03]} 55.
Rh8 {[%clk 0:00:12.5]} 55... h1=Q {[%clk 0:00:03.6]} 56. Rxh5+ {[%clk
0:00:12.7]} 56... Kxh5 {[%clk 0:00:03.7]} 57. e8=Q+ {[%clk 0:00:13.6]} 57... Kg5
{[%clk 0:00:04.3]} 58. Qe5+ {[%clk 0:00:12.5]} 58... Kg6 {[%clk 0:00:04.9]} 59.
Qd6+ {[%clk 0:00:12.5]} 59... Kg5 {[%clk 0:00:05.6]} 60. Qxa6 {[%clk 0:00:09.2]}
60... Qh7+ {[%clk 0:00:05.1]} 61. Kb6 {[%clk 0:00:09.3]} 61... Qc2 {[%clk
0:00:04.8]} 62. Qb5 {[%clk 0:00:08.9]} 62... Qg6+ {[%clk 0:00:05.3]} 63. c6+
{[%clk 0:00:09.1]} 63... Kf4 {[%clk 0:00:05.1]} 64. a4 {[%clk 0:00:09.5]} 64...
Qd6 {[%clk 0:00:03.6]} 65. Qc5 {[%clk 0:00:04.7]} 65... Qb8+ {[%clk 0:00:03.8]}
66. Ka5 {[%clk 0:00:05.1]} 66... Qa8+ {[%clk 0:00:04.4]} 67. Kb4 {[%clk
0:00:05.2]} 67... Qb8+ {[%clk 0:00:05]} 68. Ka3 {[%clk 0:00:05.6]} 68... Ke4
{[%clk 0:00:04.3]} 69. c7 {[%clk 0:00:05.7]} 69... Qc8 {[%clk 0:00:03.4]} 70.
Qb5 {[%clk 0:00:03.9]} 70... Qxc7 {[%clk 0:00:03]} 71. a5 {[%clk 0:00:02.9]}
71... Qd6+ {[%clk 0:00:03]} 72. Qb4+ {[%clk 0:00:03.1]} 72... Qxb4+ {[%clk
0:00:02.7]} 73. Kxb4 {[%clk 0:00:04]} 73... Kd3 {[%clk 0:00:03.3]} 74. a6 {[%clk
0:00:04.9]} 74... Kc2 {[%clk 0:00:04.2]} 75. a7 {[%clk 0:00:05.8]} 75... Kxb2
{[%clk 0:00:04.8]} 76. a8=Q {[%clk 0:00:06.7]} 76... Kb1 {[%clk 0:00:05.7]} 77.
Qg2 {[%clk 0:00:06.6]} 77... Kc1 {[%clk 0:00:05.9]} 78. Kc3 {[%clk 0:00:07.2]}
78... Kd1 {[%clk 0:00:06.8]} 79. Qd2# {[%clk 0:00:02.5]} 1-0

[Event "Late-Titled-Tuesday-Blitz-February-27-2024"]
[Site "Chess.com"]
[Date "2024.02.27"]
[Round "11"]
[White "DonMicheleCorleone"]
[Black "TheAlienParty"]
[Result "1/2-1/2"]
[WhiteElo "2505"]
[BlackElo "2384"]
[TimeControl "180+1"]
[EndTime "16:07:45 PST"]
[Termination "Game drawn - insufficient material"]

1. e4 {[%clk 0:02:52.1]} 1... e5 {[%clk 0:02:59]} 2. Nf3 {[%clk 0:02:51.6]} 2...
Nc6 {[%clk 0:02:58.6]} 3. Bc4 {[%clk 0:02:52.2]} 3... Bc5 {[%clk 0:02:58]} 4. c3
{[%clk 0:02:52.8]} 4... Nf6 {[%clk 0:02:57.4]} 5. d4 {[%clk 0:02:53.5]} 5...
exd4 {[%clk 0:02:47.4]} 6. cxd4 {[%clk 0:02:54.4]} 6... Bb4+ {[%clk 0:02:47]} 7.
Nc3 {[%clk 0:02:55.3]} 7... d6 {[%clk 0:02:46]} 8. O-O {[%clk 0:02:56.2]} 8...
h6 {[%clk 0:02:44.7]} 9. d5 {[%clk 0:02:54.1]} 9... Bxc3 {[%clk 0:02:40.3]} 10.
dxc6 {[%clk 0:02:54.4]} 10... Be5 {[%clk 0:02:36.7]} 11. cxb7 {[%clk 0:02:53.3]}
11... Bxb7 {[%clk 0:02:36.2]} 12. Nxe5 {[%clk 0:02:53.7]} 12... dxe5 {[%clk
0:02:35.7]} 13. Bxf7+ {[%clk 0:02:53.6]} 13... Kxf7 {[%clk 0:02:35.2]} 14. Qb3+
{[%clk 0:02:54]} 14... Bd5 {[%clk 0:02:35.2]} 15. exd5 {[%clk 0:02:54.1]} 15...
Qxd5 {[%clk 0:02:35.2]} 16. Qc2 {[%clk 0:02:53.4]} 16... c5 {[%clk 0:02:31]} 17.
Rd1 {[%clk 0:02:53]} 17... Qc6 {[%clk 0:02:30.8]} 18. Qc4+ {[%clk 0:02:52.2]}
18... Kg6 {[%clk 0:02:27.1]} 19. Be3 {[%clk 0:02:50.3]} 19... Rhc8 {[%clk
0:02:24.9]} 20. Rd2 {[%clk 0:02:45.8]} 20... Rab8 {[%clk 0:02:23.5]} 21. Rad1
{[%clk 0:02:45.3]} 21... Rb4 {[%clk 0:02:21.7]} 22. Qc2+ {[%clk 0:02:45.7]}
22... Qe4 {[%clk 0:02:20.9]} 23. Qc1 {[%clk 0:02:41.2]} 23... c4 {[%clk
0:02:16.6]} 24. a3 {[%clk 0:02:40.4]} 24... Rb3 {[%clk 0:02:13.6]} 25. Rd6
{[%clk 0:02:39.2]} 25... Rcb8 {[%clk 0:02:05.7]} 26. R1d2 {[%clk 0:02:38.5]}
26... a5 {[%clk 0:02:02.6]} 27. Qf1 {[%clk 0:02:26]} 27... c3 {[%clk 0:01:53.5]}
28. bxc3 {[%clk 0:02:25.7]} 28... Rxa3 {[%clk 0:01:51.4]} 29. Rd1 {[%clk
0:02:17.6]} 29... Rxc3 {[%clk 0:01:50.4]} 30. Qa6 {[%clk 0:02:17.6]} 30... a4
{[%clk 0:01:46.2]} 31. h4 {[%clk 0:02:16.6]} 31... Qxh4 {[%clk 0:01:42.8]} 32.
Qa5 {[%clk 0:02:06.4]} 32... Rxe3 {[%clk 0:01:16.1]} 33. fxe3 {[%clk 0:02:04.8]}
33... Rb2 {[%clk 0:01:15.5]} 34. Qe1 {[%clk 0:01:43.8]} 34... Qg5 {[%clk
0:01:00.9]} 35. R1d2 {[%clk 0:01:43.8]} 35... Rb3 {[%clk 0:00:59.1]} 36. e4
{[%clk 0:01:39.4]} 36... Kh7 {[%clk 0:00:57.7]} 37. Rf2 {[%clk 0:01:36.3]} 37...
Re3 {[%clk 0:00:54.4]} 38. Re2 {[%clk 0:01:28.8]} 38... Rxe2 {[%clk 0:00:53.1]}
39. Qxe2 {[%clk 0:01:29.3]} 39... Qc1+ {[%clk 0:00:52.9]} 40. Rd1 {[%clk
0:01:29.2]} 40... Qc5+ {[%clk 0:00:48.4]} 41. Kh1 {[%clk 0:01:29.7]} 41... Qb4
{[%clk 0:00:45.6]} 42. Qf3 {[%clk 0:01:12.5]} 42... Qxe4 {[%clk 0:00:30.7]} 43.
Qxe4+ {[%clk 0:01:12.2]} 43... Nxe4 {[%clk 0:00:30.5]} 44. Re1 {[%clk
0:01:12.9]} 44... Nf2+ {[%clk 0:00:22.4]} 45. Kg1 {[%clk 0:01:11.6]} 45... Nd3
{[%clk 0:00:22.2]} 46. Re3 {[%clk 0:01:11.9]} 46... Nc1 {[%clk 0:00:12.7]} 47.
Ra3 {[%clk 0:00:57.7]} 47... Kg6 {[%clk 0:00:11.9]} 48. Rxa4 {[%clk 0:00:57]}
48... Kf5 {[%clk 0:00:12.1]} 49. Ra3 {[%clk 0:00:54.2]} 49... Ne2+ {[%clk
0:00:11.4]} 50. Kf2 {[%clk 0:00:54.1]} 50... Nd4 {[%clk 0:00:11.7]} 51. Ra8
{[%clk 0:00:51]} 51... g5 {[%clk 0:00:11.4]} 52. Rf8+ {[%clk 0:00:49.4]} 52...
Kg6 {[%clk 0:00:11.4]} 53. Ra8 {[%clk 0:00:50.3]} 53... Kf5 {[%clk 0:00:11.2]}
54. Ra6 {[%clk 0:00:50.9]} 54... h5 {[%clk 0:00:11.2]} 55. Ra8 {[%clk
0:00:51.4]} 55... h4 {[%clk 0:00:11.4]} 56. Rh8 {[%clk 0:00:52]} 56... Kg6
{[%clk 0:00:11.2]} 57. Re8 {[%clk 0:00:51.8]} 57... Kf6 {[%clk 0:00:11.3]} 58.
Rf8+ {[%clk 0:00:52]} 58... Ke6 {[%clk 0:00:11.4]} 59. Rg8 {[%clk 0:00:52.3]}
59... Kf5 {[%clk 0:00:11.5]} 60. Rf8+ {[%clk 0:00:52.8]} 60... Kg4 {[%clk
0:00:11.4]} 61. Re8 {[%clk 0:00:52.8]} 61... Kf5 {[%clk 0:00:11.2]} 62. Ra8
{[%clk 0:00:52.2]} 62... Ne6 {[%clk 0:00:11]} 63. Ra4 {[%clk 0:00:51.7]} 63...
Nf4 {[%clk 0:00:11.1]} 64. Ra8 {[%clk 0:00:48.4]} 64... g4 {[%clk 0:00:11]} 65.
Rf8+ {[%clk 0:00:47.5]} 65... Kg5 {[%clk 0:00:11.2]} 66. Rg8+ {[%clk 0:00:47.7]}
66... Kh5 {[%clk 0:00:11.4]} 67. Re8 {[%clk 0:00:42.6]} 67... Ng6 {[%clk
0:00:11]} 68. Ke3 {[%clk 0:00:39.8]} 68... Kg5 {[%clk 0:00:11.2]} 69. Ke4 {[%clk
0:00:39.3]} 69... g3 {[%clk 0:00:10.9]} 70. Kf3 {[%clk 0:00:32.5]} 70... Kf5
{[%clk 0:00:11]} 71. Ke3 {[%clk 0:00:22.4]} 71... Nf4 {[%clk 0:00:08.5]} 72. Kf3
{[%clk 0:00:21]} 72... e4+ {[%clk 0:00:07]} 73. Rxe4 {[%clk 0:00:20.6]} 73...
Nxg2 {[%clk 0:00:07.2]} 74. Ra4 {[%clk 0:00:16.4]} 74... Ne1+ {[%clk 0:00:07.2]}
75. Ke2 {[%clk 0:00:15.4]} 75... g2 {[%clk 0:00:07.3]} 76. Kf2 {[%clk
0:00:12.8]} 76... h3 {[%clk 0:00:06.2]} 77. Rh4 {[%clk 0:00:12.5]} 77... g1=Q+
{[%clk 0:00:04.6]} 78. Kxg1 {[%clk 0:00:12.4]} 78... Nf3+ {[%clk 0:00:05.2]} 79.
Kf2 {[%clk 0:00:11.2]} 79... Nxh4 {[%clk 0:00:05.7]} 80. Kg3 {[%clk 0:00:12.1]}
80... Kg5 {[%clk 0:00:05.6]} 81. Kxh3 {[%clk 0:00:12.4]} 1/2-1/2